fUST/lending_fUST_20250203
["ID","MTS","AMOUNT","RATE_DAILY","PERIOD"]
[351415929,1738563042044,-500.0,0.00016438,2]
[351415930,1738563042053,-500.0,0.00016438,2]
[351415931,1738563042064,-705.75,0.00016438,2]
[351415932,1738563042075,-500.0,0.00016438,2]
[351415933,1738563042087,-500.0,0.00016438,2]
[351415934,1738563042098,-500.0,0.00016438,2]
[351415935,1738563042109,-500.0,0.00016438,2]
[351415936,1738563042119,-691.6,0.00016438,2]
[351415937,1738563042130,-500.0,0.00016438,2]
[351415938,1738563042149,-4610.27,0.00016438,2]
[351415939,1738563042160,-4610.27,0.00016438,2]
[351415940,1738563042171,-4610.27,0.00016438,2]
[351415941,1738563042182,-4610.27,0.00016438,2]
[351415942,1738563042193,-500.0,0.00016438,2]
[351415943,1738563042204,-4739.52,0.00016438,2]
[351415944,1738563042216,-4610.27,0.00016438,2]
[351415945,1738563042227,-4610.27,0.00016438,2]
[351415946,1738563042237,-4610.27,0.00016438,2]
[351415947,1738563042248,-4610.27,0.00016438,2]
[351415948,1738563042260,-618.71614986,0.00016438,2]
[351415949,1738563042273,-4610.27,0.00016438,2]
[351415950,1738563042288,-4610.27,0.00016438,2]
[351415951,1738563042299,-4610.27,0.00016438,2]
[351415952,1738563042311,-4610.27,0.00016438,2]
[351415953,1738563042324,-4610.27,0.00016438,2]
[351415954,1738563042336,-500.0,0.00016438,2]
[351415955,1738563042347,-4610.27,0.00016438,2]
[351415956,1738563042358,-4610.27,0.00016438,2]
[351415957,1738563042368,-4610.27,0.00016438,2]
[351415958,1738563042377,-4610.27,0.00016438,2]
[351415959,1738563042392,-4610.27,0.00016438,2]
[351415960,1738563042402,-4610.27,0.00016438,2]
[351415961,1738563042412,-4610.27,0.00016438,2]
[351415962,1738563042422,-500.0,0.00016438,2]
[351415963,1738563042431,-4610.27,0.00016438,2]
[351415964,1738563042440,-4610.27,0.00016438,2]
[351415965,1738563042450,-4610.27,0.00016438,2]
[351415966,1738563042461,-500.0,0.00016438,2]
[351415967,1738563042471,-4610.46420906,0.00016438,2]
[351415968,1738563042480,-500.0,0.00016438,2]
[351415969,1738563042498,-500.0,0.00016438,2]
[351415970,1738563042507,-588.68918643,0.00016438,2]
[351415971,1738563042517,-500.0,0.00016438,2]
[351415972,1738563042527,-501.87828107,0.00016438,2]
[351415973,1738563042537,-500.0,0.00016438,2]
[351415974,1738563042547,-500.0,0.00016438,2]
[351415975,1738563042556,-474.96029185,0.00016438,2]
[351416027,1738563043884,-25.03970815,0.00016438,2]
[351416028,1738563043897,-1221.75,0.00016438,2]
[351416029,1738563043906,-3163.23,0.00016438,2]
[351416030,1738563043915,-500.0,0.00016438,2]
[351416032,1738563043924,-350.49442653,0.00016438,2]
[351416034,1738563043934,-500.0,0.00016438,2]
[351416036,1738563043943,-500.0,0.00016438,2]
[351416038,1738563043952,-500.0,0.00016438,2]
[351416041,1738563043961,-652.57,0.00016438,2]
[351416044,1738563043971,-502.7610483,0.00016438,2]
[351416046,1738563043981,-500.0,0.00016438,2]
[351416047,1738563043990,-500.0,0.00016438,2]
[351416048,1738563043999,-500.0,0.00016438,2]
[351416049,1738563044008,-501.21221953,0.00016438,2]
[351416050,1738563044017,-500.0,0.00016438,2]
[351416051,1738563044027,-937.0,0.00016438,2]
[351416052,1738563044036,-500.0,0.00016438,2]
[351416053,1738563044045,-215.673964,0.00016438,2]
[351416054,1738563044055,-500.71843361,0.00016438,2]
[351416055,1738563044064,-500.0,0.00016438,2]
[351416056,1738563044073,-500.0,0.00016438,2]
[351416057,1738563044083,-500.0,0.00016438,2]
[351416058,1738563044092,-544.28,0.00016438,2]
[351416059,1738563044101,-500.0,0.00016438,2]
[351416060,1738563044111,-1458.51,0.00016438,2]
[351416061,1738563044120,-500.0,0.00016438,2]
[351416062,1738563044130,-500.0,0.00016438,2]
[351416063,1738563044142,-500.0,0.00016438,2]
[351416064,1738563044151,-500.0,0.00016438,2]
[351416065,1738563044161,-500.0,0.00016438,2]
[351416066,1738563044170,-215.673964,0.00016438,2]
[351416067,1738563044179,-500.0,0.00016438,2]
[351416068,1738563044189,-247.02495986,0.00016438,2]
[351416069,1738563044198,-500.0,0.00016438,2]
[351416070,1738563044207,-492.35972542,0.00016438,2]
[351416071,1738563044219,-7046.12,0.00016438,2]
[351416072,1738563044230,-500.0,0.00016438,2]
[351416073,1738563044239,-7046.12,0.00016438,2]
[351416074,1738563044249,-500.0,0.00016438,2]
[351416075,1738563044259,-7046.12,0.00016438,2]
[351416076,1738563044269,-7046.12,0.00016438,2]
[351416077,1738563044281,-7046.12,0.00016438,2]
[351416078,1738563044292,-7046.12,0.00016438,2]
[351416079,1738563044302,-7046.12,0.00016438,2]
[351416080,1738563044312,-7046.12,0.00016438,2]
[351416081,1738563044323,-7046.12,0.00016438,2]
[351416082,1738563044332,-7046.12,0.00016438,2]
[351416083,1738563044342,-7046.12,0.00016438,2]
[351416084,1738563044354,-7046.12,0.00016438,2]
[351416085,1738563044365,-7046.12,0.00016438,2]
[351416086,1738563044378,-7046.12,0.00016438,2]
[351416087,1738563044390,-7046.12,0.00016438,2]
[351416088,1738563044400,-500.0,0.00016438,2]
[351416089,1738563044409,-513.07,0.00016438,2]
[351416090,1738563044419,-7046.12,0.00016438,2]
[351416091,1738563044429,-7046.12,0.00016438,2]
[351416092,1738563044439,-7046.12,0.00016438,2]
[351416093,1738563044449,-7046.12,0.00016438,2]
[351416094,1738563044458,-500.0,0.00016438,2]
[351416095,1738563044468,-7046.12,0.00016438,2]
[351416096,1738563044477,-7046.12,0.00016438,2]
[351416097,1738563044486,-500.0,0.00016438,2]
[351416098,1738563044496,-7046.12,0.00016438,2]
[351416099,1738563044505,-500.0,0.00016438,2]
[351416100,1738563044515,-7046.12,0.00016438,2]
[351416101,1738563044651,-7046.3246175,0.00016438,2]
[351416102,1738563044661,-500.0,0.00016438,2]
[351416103,1738563044671,-604.80677591,0.00016438,2]
[351416104,1738563044680,-500.0,0.00016438,2]
[351416105,1738563044689,-506.61,0.00016438,2]
[351416106,1738563044699,-1462.61,0.00016438,2]
[351416107,1738563044709,-128.54517233,0.00016438,2]
[351416108,1738563044722,-851.90482767,0.00016438,2]
[351416109,1738563044731,-702.99,0.00016438,2]
[351416110,1738563044741,-500.0,0.00016438,2]
[351416111,1738563044750,-502.45996845,0.00016438,2]
[351416112,1738563044759,-500.0,0.00016438,2]
[351416113,1738563044769,-391.87946955,0.00016438,2]
[351416114,1738563044780,-108.12053045,0.00016438,2]
[351416115,1738563044790,-500.0,0.00016438,2]
[351416116,1738563044799,-600.07,0.00016438,2]
[351416117,1738563044808,-332.09370828,0.00016438,2]
[351416118,1738563044820,-167.90629172,0.00016438,2]
[351416119,1738563044829,-500.0,0.00016438,2]
[351416120,1738563044838,-767.63,0.00016438,2]
[351416121,1738563044847,-729.16,0.00016438,2]
[351416122,1738563044857,-11760.98,0.00016438,2]
[351416123,1738563044866,-500.0,0.00016438,2]
[351416124,1738563044876,-500.0,0.00016438,2]
[351416125,1738563044888,-500.0,0.00016438,2]
[351416126,1738563044897,-500.0,0.00016438,2]
[351416127,1738563044906,-3928.81,0.00016438,2]
[351416128,1738563044915,-500.0,0.00016438,2]
[351416129,1738563044925,-500.0,0.00016438,2]
[351416130,1738563044934,-1446.79,0.00016438,2]
[351416131,1738563044943,-500.0,0.00016438,2]
[351416132,1738563044952,-500.0,0.00016438,2]
[351416133,1738563044961,-500.0,0.00016438,2]
[351416134,1738563044970,-2638.63,0.00016438,2]
[351416135,1738563044980,-500.0,0.00016438,2]
[351416136,1738563044989,-606.10562198,0.00016438,2]
[351416137,1738563044999,-500.0,0.00016438,2]
[351416138,1738563045008,-500.0,0.00016438,2]
[351416139,1738563045017,-500.0,0.00016438,2]
[351416140,1738563045026,-500.0,0.00016438,2]
[351416141,1738563045037,-500.0,0.00016438,2]
[351416142,1738563045046,-500.0,0.00016438,2]
[351416143,1738563045056,-500.0,0.00016438,2]
[351416144,1738563045066,-405.23715401,0.00016438,2]
[351416145,1738563045075,-500.0,0.00016438,2]
[351416146,1738563045085,-61436.77,0.00016438,2]
[351416147,1738563045096,-1824.39,0.00016438,2]
[351416148,1738563045106,-500.0,0.00016438,2]
[351416149,1738563045115,-502.69868865,0.00016438,2]
[351416150,1738563045125,-500.0,0.00016438,2]
[351416151,1738563045135,-833.33,0.00016438,2]
[351416152,1738563045146,-500.0,0.00016438,2]
[351416153,1738563045156,-500.0,0.00016438,2]
[351416154,1738563045165,-1183.89,0.00016438,2]
[351416155,1738563045174,-500.0,0.00016438,2]
[351416156,1738563045184,-500.0,0.00016438,2]
[351416157,1738563045194,-3148.47,0.00016438,2]
[351416158,1738563045204,-500.0,0.00016438,2]
[351416159,1738563045213,-500.0,0.00016438,2]
[351416160,1738563045223,-353.57509074,0.00016438,2]
[351416161,1738563045232,-500.0,0.00016438,2]
[351416162,1738563045242,-1419.65,0.00016438,2]
[351416163,1738563045251,-508.44641942,0.00016438,2]
[351416164,1738563045262,-500.0,0.00016438,2]
[351416165,1738563045272,-502.43929256,0.00016438,2]
[351416166,1738563045283,-500.0,0.00016438,2]
[351416167,1738563045292,-172.80088778,0.00016438,2]
[351416168,1738563045302,-500.0,0.00016438,2]
[351416169,1738563045311,-500.0,0.00016438,2]
[351416170,1738563045321,-1754.66,0.00016438,2]
[351416171,1738563045331,-1000.0,0.00016438,7]
[351416172,1738563045340,-501.31459722,0.00016438,2]
[351416173,1738563045350,-500.0,0.00016438,2]
[351416174,1738563045359,-500.0,0.00016438,2]
[351416175,1738563045368,-500.0,0.00016438,2]
[351416176,1738563045378,-687.5,0.00016438,2]
[351416177,1738563045390,-16475.07,0.00016438,2]
[351416178,1738563045399,-500.0,0.00016438,2]
[351416179,1738563045408,-151.0,0.00016438,2]
[351416180,1738563045418,-151.0,0.00016438,2]
[351416181,1738563045427,-500.0,0.00016438,2]
[351416182,1738563045436,-500.0,0.00016438,2]
[351416183,1738563045446,-151.0,0.00016438,2]
[351416184,1738563045455,-500.0,0.00016438,2]
[351416185,1738563045464,-753.6,0.00016438,2]
[351416186,1738563045473,-500.0,0.00016438,2]
[351416187,1738563045482,-500.0,0.00016438,2]
[351416188,1738563045492,-500.0,0.00016438,2]
[351416189,1738563045501,-1054.43,0.00016438,2]
[351416190,1738563045510,-500.0,0.00016438,2]
[351416191,1738563045520,-151.0,0.00016438,2]
[351416192,1738563045530,-501.97567683,0.00016438,2]
[351416193,1738563045540,-151.0,0.00016438,2]
[351416194,1738563045553,-151.0,0.00016438,2]
[351416195,1738563045562,-505.12742326,0.00016438,2]
[351416196,1738563045571,-1062.72,0.00016438,2]
[351416197,1738563045580,-1315.13,0.00016438,2]
[351416198,1738563045590,-500.0,0.00016438,2]
[351416199,1738563045600,-504.45,0.00016438,2]
[351416200,1738563045609,-500.0,0.00016438,2]
[351416201,1738563045619,-495.43801936,0.00016438,2]
[351416202,1738563045628,-500.0,0.00016438,2]
[351416203,1738563045638,-7496.11,0.00016438,2]
[351416204,1738563045648,-1698.44,0.00016438,2]
[351416205,1738563045657,-500.0,0.00016438,2]
[351416206,1738563045666,-500.0,0.00016438,2]
[351416207,1738563045675,-1003.61,0.00016438,2]
[351416208,1738563045684,-500.0,0.00016438,2]
[351416209,1738563045694,-500.0,0.00016438,2]
[351416210,1738563045703,-500.0,0.00016438,2]
[351416211,1738563045713,-500.0,0.00016438,2]
[351416212,1738563045721,-500.0,0.00016438,2]
[351416213,1738563045730,-500.0,0.00016438,2]
[351416214,1738563045739,-1860.51,0.00016438,2]
[351416215,1738563045748,-630.17,0.00016438,2]
[351416216,1738563045757,-500.0,0.00016438,2]
[351416217,1738563045766,-500.0,0.00016438,2]
[351416218,1738563045776,-750.9,0.00016438,2]
[351416219,1738563045785,-500.0,0.00016438,2]
[351416220,1738563045795,-664.071038,0.00016438,2]
[351416221,1738563045804,-664.071038,0.00016438,2]
[351416222,1738563045814,-664.071038,0.00016438,2]
[351416223,1738563045823,-500.0,0.00016438,2]
[351416224,1738563045832,-1320.37,0.00016438,2]
[351416225,1738563045841,-500.0,0.00016438,2]
[351416226,1738563045850,-664.071038,0.00016438,2]
[351416227,1738563045859,-500.0,0.00016438,2]
[351416228,1738563045868,-500.0,0.00016438,2]
[351416229,1738563045878,-664.071038,0.00016438,2]
[351416230,1738563045888,-664.071038,0.00016438,2]
[351416231,1738563045898,-439.5813914,0.00016438,2]
[351416232,1738563045907,-537.05,0.00016438,2]
[351416233,1738563045917,-500.0,0.00016438,2]
[351416234,1738563045926,-500.0,0.00016438,2]
[351416235,1738563045936,-151.0,0.00016438,2]
[351416236,1738563045945,-151.0,0.00016438,2]
[351416237,1738563045954,-151.0,0.00016438,2]
[351416238,1738563045963,-336.53203912,0.00016438,2]
[351416239,1738563045973,-152.0,0.00016439,2]
[351416240,1738563045982,-3000.0,0.0001644,2]
[351416241,1738563045992,-2484.03610024,0.00016441,2]
[351416242,1738563046001,-3000.0,0.0001645,2]
[351416243,1738563046011,-3000.0,0.0001646,2]
[351416244,1738563046020,-151.0,0.0001646,2]
[351416245,1738563046029,-3407.960334,0.0001646,2]
[351416246,1738563046038,-3407.960334,0.0001646,2]
[351416247,1738563046047,-1403.722995,0.0001646,2]
[351416248,1738563046057,-1403.722995,0.0001646,2]
[351416249,1738563046066,-4833.911052,0.0001647,2]
[351416250,1738563046075,-614.31427083,0.00016473,2]
[351416251,1738563046085,-500.0,0.00016473,2]
[351416252,1738563046094,-504.06401538,0.00016473,2]
[351416253,1738563046103,-250.67700882,0.00016473,2]
[351416254,1738563046112,-268.77097913,0.00016473,2]
[351416255,1738563046121,-500.0,0.00016473,2]
[351416256,1738563046130,-470.8539082,0.00016473,2]
[351416257,1738563046141,-500.0,0.00016473,2]
[351416258,1738563046151,-238.39969783,0.00016473,2]
[351416259,1738563046160,-500.0,0.00016473,2]
[351416260,1738563046169,-500.0,0.00016473,2]
[351416262,1738563046179,-500.0,0.00016473,2]
[351416264,1738563046188,-151.0,0.00016475,2]
[351416265,1738563046197,-980.313516,0.00016475,2]
[351416267,1738563046206,-980.313516,0.00016475,2]
[351416268,1738563046215,-2484.03610024,0.00016475,2]
[351416269,1738563046224,-6537.694131,0.00016475,2]
[351416270,1738563046233,-6537.694131,0.00016475,2]
[351416271,1738563046242,-624.492297,0.00016475,2]
[351416272,1738563046252,-624.492297,0.00016475,2]
[351416273,1738563046262,-1525.888876,0.00016475,2]
[351416274,1738563046273,-1525.888876,0.00016475,2]
[351416275,1738563046283,-50365.94581676,0.00016475,7]
[351416276,1738563046292,-3000.0,0.00016475,2]
[351416277,1738563046302,-151.0,0.000165,2]
[351416278,1738563046312,-151.0,0.000165,2]
[351416279,1738563046321,-151.0,0.000165,2]
[351416280,1738563046331,-151.0,0.000165,2]
[351416281,1738563046340,-151.0,0.000165,2]
[351416282,1738563046351,-151.0,0.000165,2]
[351416283,1738563046360,-14915.56,0.000165,2]
[351416284,1738563046369,-151.0,0.000165,2]
[351416285,1738563046379,-151.0,0.000165,2]
[351416286,1738563046390,-151.0,0.000165,2]
[351416287,1738563046401,-151.0,0.000165,2]
[351416288,1738563046411,-151.0,0.000165,2]
[351416289,1738563046421,-151.0,0.000165,2]
[351416291,1738563046430,-151.0,0.000165,2]
[351416293,1738563046440,-151.0,0.000165,2]
[351416294,1738563046449,-14768.9,0.000165,2]
[351416295,1738563046459,-354.5475049,0.000165,2]
[351416296,1738563046568,-501.64082735,0.00016573,2]
[351416297,1738563046578,-500.0,0.00016573,2]
[351416298,1738563046587,-500.0,0.00016573,2]
[351416299,1738563046597,-503.82199146,0.00016573,2]
[351416300,1738563046606,-501.19233727,0.00016573,2]
[351416301,1738563046615,-634.63919091,0.00016573,2]
[351416302,1738563046624,-500.0,0.00016573,2]
[351416303,1738563046634,-162.67746334,0.00016573,2]
[351416304,1738563046644,-500.0,0.00016573,2]
[351416305,1738563046653,-500.58249844,0.00016573,2]
[351416306,1738563046662,-500.0,0.00016573,2]
[351416308,1738563046671,-500.0,0.00016573,2]
[351416310,1738563046681,-500.7574919,0.00016573,2]
[351416312,1738563046690,-500.0,0.00016573,2]
[351416314,1738563046699,-500.0,0.00016573,2]
[351416316,1738563046709,-159.54253048,0.00016573,2]
[351416317,1738563046718,-500.0,0.00016573,2]
[351416318,1738563046728,-501.86522182,0.00016573,2]
[351416320,1738563046737,-500.0,0.00016573,2]
[351416322,1738563046746,-152.98416799,0.00016573,2]
[351416323,1738563046755,-219.28828518,0.00016573,2]
[351416324,1738563046764,-500.0,0.00016573,2]
[351416325,1738563046774,-500.0,0.00016573,2]
[351416326,1738563046783,-151.49150965,0.00016573,2]
[351416327,1738563046793,-500.0,0.00016573,2]
[351416328,1738563046803,-500.0,0.00016573,2]
[351416329,1738563046812,-500.0,0.00016573,2]
[351416330,1738563046822,-500.0,0.00016574,2]
[351416331,1738563046831,-500.0,0.00016574,2]
[351416332,1738563046841,-500.0,0.00016574,2]
[351416333,1738563046850,-500.0,0.00016574,2]
[351416334,1738563046860,-500.0,0.00016574,2]
[351416335,1738563046869,-172.660072,0.00016574,2]
[351416336,1738563046878,-172.660072,0.00016574,2]
[351416338,1738563046887,-500.0,0.00016574,2]
[351416340,1738563046898,-160.0,0.00016574,2]
[351416342,1738563046908,-500.0,0.00016574,2]
[351416343,1738563046917,-500.0,0.00016574,2]
[351416344,1738563046926,-500.0,0.00016574,2]
[351416345,1738563046935,-500.0,0.00016574,2]
[351416346,1738563046944,-500.0,0.00016574,2]
[351416347,1738563046954,-500.0,0.00016574,2]
[351416348,1738563046963,-38389.47129968,0.00016575,5]
[351416349,1738563046973,-184.27439982,0.00016575,2]
[351416350,1738563046982,-503.31550951,0.00016575,2]
[351416351,1738563046992,-500.0,0.00016575,2]
[351416352,1738563047002,-498.55568629,0.00016575,2]
[351416353,1738563047012,-185.89226442,0.00016575,2]
[351416354,1738563047021,-500.0,0.00016575,2]
[351416355,1738563047030,-500.0,0.00016575,2]
[351416356,1738563047040,-500.0,0.00016575,2]
[351416357,1738563047049,-500.0,0.00016575,2]
[351416358,1738563047058,-508.87841728,0.00016575,2]
[351416359,1738563047067,-500.0,0.00016575,2]
[351416360,1738563047077,-500.0,0.00016575,2]
[351416361,1738563047086,-500.0,0.00016575,2]
[351416362,1738563047095,-504.14500566,0.00016575,2]
[351416363,1738563047105,-500.0,0.00016575,2]
[351416364,1738563047114,-500.0,0.00016575,2]
[351416365,1738563047123,-444.74577539,0.00016575,2]
[351416366,1738563047132,-500.0,0.00016575,2]
[351416367,1738563047142,-500.0,0.00016575,2]
[351416368,1738563047151,-500.0,0.00016575,2]
[351416369,1738563047160,-500.0,0.00016575,2]
[351416370,1738563047170,-503.30057774,0.00016575,2]
[351416371,1738563047179,-500.0,0.00016575,2]
[351416372,1738563047188,-452.80098528,0.00016575,2]
[351416373,1738563047198,-500.0,0.00016575,2]
[351416374,1738563047208,-500.0,0.00016575,2]
[351416375,1738563047217,-500.0,0.00016575,2]
[351416376,1738563047226,-500.0,0.00016575,2]
[351416377,1738563047236,-500.0,0.00016575,2]
[351416378,1738563047245,-500.0,0.00016575,2]
[351416379,1738563047254,-500.0,0.00016575,2]
[351416380,1738563047266,-500.0,0.00016575,2]
[351416381,1738563047275,-504.11874648,0.00016575,2]
[351416382,1738563047285,-500.0,0.00016575,2]
[351416383,1738563047294,-500.0,0.00016575,2]
[351416384,1738563047304,-500.0,0.00016575,2]
[351416385,1738563047313,-500.0,0.00016575,2]
[351416386,1738563047323,-500.0,0.00016575,2]
[351416387,1738563047332,-616.18609557,0.00016575,2]
[351416388,1738563047343,-164.44333234,0.00016575,2]
[351416389,1738563047353,-500.0,0.00016575,2]
[351416390,1738563047362,-500.0,0.00016575,2]
[351416391,1738563047371,-500.0,0.00016575,2]
[351416392,1738563047381,-504.41584859,0.00016575,2]
[351416393,1738563047391,-230.13979243,0.00016575,2]
[351416394,1738563047401,-500.0,0.00016575,2]
[351416395,1738563047411,-500.0,0.00016575,2]
[351416396,1738563047421,-500.0,0.00016575,2]
[351416397,1738563047431,-500.0,0.00016575,2]
[351416398,1738563047441,-500.0,0.00016575,2]
[351416399,1738563047451,-500.0,0.00016575,2]
[351416400,1738563047461,-554.94801644,0.00016575,2]
[351416401,1738563047470,-500.0,0.00016575,2]
[351416402,1738563047480,-500.0,0.00016575,2]
[351416403,1738563047490,-504.05875162,0.00016575,2]
[351416404,1738563047500,-512.50351832,0.00016575,2]
[351416405,1738563047509,-500.0,0.00016575,2]
[351416406,1738563047519,-500.0,0.00016575,2]
[351416407,1738563047528,-500.0,0.00016575,2]
[351416408,1738563047538,-506.17505671,0.00016575,2]
[351416409,1738563047548,-500.0,0.00016575,2]
[351416410,1738563047557,-500.0,0.00016575,2]
[351416411,1738563047567,-500.0,0.00016575,2]
[351416412,1738563047577,-500.0,0.00016575,2]
[351416413,1738563047587,-500.0,0.00016575,2]
[351416414,1738563047596,-500.0,0.00016575,2]
[351416415,1738563047606,-501.10364396,0.00016575,2]
[351416416,1738563047616,-500.0,0.00016575,2]
[351416417,1738563047626,-500.0,0.00016575,2]
[351416418,1738563047635,-500.0,0.00016575,2]
[351416419,1738563047647,-500.0,0.00016575,5]
[351416420,1738563047657,-512.4581197,0.00016575,2]
[351416421,1738563047666,-500.0,0.00016575,2]
[351416422,1738563047676,-500.0,0.00016575,2]
[351416423,1738563047685,-501.6966905,0.00016575,2]
[351416424,1738563047695,-506.16479802,0.00016575,2]
[351416425,1738563047705,-500.0,0.00016575,2]
[351416426,1738563047715,-577.19310999,0.00016575,2]
[351416427,1738563047725,-500.0,0.00016575,2]
[351416428,1738563047734,-500.0,0.00016575,2]
[351416429,1738563047743,-500.0,0.00016575,2]
[351416430,1738563047753,-511.63795399,0.00016575,2]
[351416431,1738563047762,-500.0,0.00016575,2]
[351416432,1738563047772,-500.0,0.00016575,2]
[351416433,1738563047782,-500.0,0.00016575,2]
[351416434,1738563047792,-500.0,0.00016575,2]
[351416435,1738563047802,-500.0,0.00016575,2]
[351416436,1738563047813,-500.0,0.00016575,2]
[351416437,1738563047822,-500.0,0.00016575,2]
[351416438,1738563047832,-500.0,0.00016575,2]
[351416439,1738563047842,-500.0,0.00016575,2]
[351416440,1738563047851,-500.0,0.00016575,2]
[351416441,1738563047861,-500.0,0.00016575,2]
[351416442,1738563047870,-500.0,0.00016575,2]
[351416443,1738563047879,-500.0,0.00016575,2]
[351416444,1738563047889,-504.39679104,0.00016575,2]
[351416445,1738563047899,-500.0,0.00016575,2]
[351416446,1738563047908,-505.51268185,0.00016575,2]
[351416447,1738563047918,-500.00000002,0.00016575,2]
[351416448,1738563047927,-500.0,0.00016575,2]
[351416449,1738563047937,-500.0,0.00016575,2]
[351416450,1738563047947,-500.0,0.00016575,2]
[351416451,1738563047956,-500.0,0.00016575,2]
[351416452,1738563047965,-500.0,0.00016575,2]
[351416453,1738563047975,-500.0,0.00016575,2]
[351416454,1738563047985,-500.0,0.00016575,2]
[351416455,1738563047995,-520.21944243,0.00016575,2]
[351416456,1738563048004,-503.31606378,0.00016575,2]
[351416457,1738563048014,-500.0,0.00016575,2]
[351416458,1738563048024,-500.0,0.00016575,2]
[351416459,1738563048034,-500.0,0.00016575,2]
[351416460,1738563048043,-500.0,0.00016575,2]
[351416461,1738563048052,-500.0,0.00016575,2]
[351416462,1738563048061,-501.73197781,0.00016575,2]
[351416463,1738563048071,-500.0,0.00016575,2]
[351416464,1738563048081,-500.0,0.00016575,2]
[351416465,1738563048091,-500.0,0.00016575,2]
[351416466,1738563048100,-500.0,0.00016575,2]
[351416467,1738563048113,-500.0,0.00016575,2]
[351416468,1738563048136,-500.0,0.00016575,2]
[351416469,1738563048151,-500.0,0.00016575,2]
[351416470,1738563048161,-500.0,0.00016575,2]
[351416471,1738563048172,-1000.0,0.00016575,2]
[351416472,1738563048182,-500.0,0.00016575,2]
[351416473,1738563048192,-500.0,0.00016575,2]
[351416474,1738563048202,-500.0,0.00016575,2]
[351416475,1738563048212,-500.0,0.00016575,2]
[351416476,1738563048222,-500.0,0.00016575,2]
[351416477,1738563048231,-500.0,0.00016575,2]
[351416478,1738563048240,-500.0,0.00016575,2]
[351416479,1738563048249,-222.627219,0.00016575,2]
[351416480,1738563048259,-222.627219,0.00016575,2]
[351416481,1738563048270,-501.04227712,0.00016575,2]
[351416482,1738563048386,-500.0,0.00016575,2]
[351416483,1738563048401,-500.0,0.00016575,2]
[351416484,1738563048412,-500.0,0.00016575,2]
[351416485,1738563048423,-500.0,0.00016575,2]
[351416486,1738563048434,-500.0,0.00016575,2]
[351416487,1738563048445,-500.0,0.00016575,2]
[351416488,1738563048457,-1005.887843,0.00016575,2]
[351416489,1738563048467,-502.78907829,0.00016575,2]
[351416490,1738563048477,-1005.887843,0.00016575,2]
[351416491,1738563048487,-500.0,0.00016575,2]
[351416492,1738563048496,-500.0,0.00016575,2]
[351416493,1738563048506,-463.05134505,0.00016575,2]
[351416494,1738563048515,-503.69517275,0.00016575,2]
[351416495,1738563048525,-372.623118,0.00016575,2]
[351416496,1738563048534,-500.0,0.00016575,2]
[351416497,1738563048544,-286.66984444,0.00016575,2]
[351416498,1738563048554,-372.623118,0.00016575,2]
[351416499,1738563048563,-500.0,0.00016575,2]
[351416500,1738563048573,-500.0,0.00016575,2]
[351416501,1738563048583,-500.0,0.00016575,2]
[351416502,1738563048594,-1784.938725,0.00016575,2]
[351416503,1738563048604,-500.0,0.00016575,2]